[Event "Titled Tuesday Blitz November 01 Early 2022"]
[White "Zhu, Jiner"]
[Black "Bagwe Gaurang"]
[WhiteFideId "8608059"]
[BlackFideId "45039895"]
[WhiteElo "2384"]
[BlackElo "1931"]
[Result "1-0"]
[Round "07"]
[TimeControl "180+1"]
[Date "2022.11.02"]
[WhiteClock "0:00:49"]
[BlackClock "0:00:03"]

1. c4 {[%clk 0:03:00]}  e5 {[%clk 0:02:59]} 2. Nc3 {[%clk 0:03:01]}  Nf6 {[%clk 0:02:59]} 3. Nf3 {[%clk 0:03:01]}  Nc6 {[%clk 0:03:00]} 4. e4 {[%clk 0:03:01]}  Be7 {[%clk 0:02:48]} 5. d4 {[%clk 0:02:54]}  exd4 {[%clk 0:02:46]} 6. Nxd4 {[%clk 0:02:55]}  Nxd4 {[%clk 0:02:41]} 7. Qxd4 {[%clk 0:02:54]}  d6 {[%clk 0:02:42]} 8. Be2 {[%clk 0:02:52]}  O-O {[%clk 0:02:42]} 9. O-O {[%clk 0:02:52]}  Be6 {[%clk 0:02:42]} 10. f3 {[%clk 0:02:48]}  Nd7 {[%clk 0:02:39]} 11. Be3 {[%clk 0:02:47]}  Bf6 {[%clk 0:02:39]} 12. Qd2 {[%clk 0:02:47]}  a5 {[%clk 0:02:23]} 13. f4 {[%clk 0:02:34]}  Nb6 {[%clk 0:01:57]} 14. Nd5 {[%clk 0:02:22]}  Bxd5 {[%clk 0:01:53]} 15. cxd5 {[%clk 0:02:20]}  Re8 {[%clk 0:01:52]} 16. Bd3 {[%clk 0:02:13]}  Qe7 {[%clk 0:01:50]} 17. Rae1 {[%clk 0:02:12]}  g6 {[%clk 0:01:43]} 18. Kh1 {[%clk 0:02:12]}  a4 {[%clk 0:01:37]} 19. Bg1 {[%clk 0:02:00]}  a3 {[%clk 0:01:32]} 20. b3 {[%clk 0:02:00]}  Nd7 {[%clk 0:01:29]} 21. Re2 {[%clk 0:01:51]}  b6 {[%clk 0:01:26]} 22. b4 {[%clk 0:01:50]}  Bg7 {[%clk 0:01:11]} 23. Rfe1 {[%clk 0:01:46]}  Nf6 {[%clk 0:01:08]} 24. Bb5 {[%clk 0:01:41]}  Red8 {[%clk 0:01:02]} 25. Bc6 {[%clk 0:01:39]}  Ra7 {[%clk 0:01:02]} 26. Qd3 {[%clk 0:01:32]}  g5 {[%clk 0:00:51]} 27. g3 {[%clk 0:01:27]}  gxf4 {[%clk 0:00:41]} 28. gxf4 {[%clk 0:01:28]}  Kh8 {[%clk 0:00:41]} 29. Qf3 {[%clk 0:01:26]}  Rg8 {[%clk 0:00:27]} 30. e5 {[%clk 0:01:19]}  dxe5 {[%clk 0:00:25]} 31. fxe5 {[%clk 0:01:20]}  Nd7 {[%clk 0:00:20]} 32. e6 {[%clk 0:01:16]}  Nf6 {[%clk 0:00:19]} 33. Bd4 {[%clk 0:01:09]}  b5 {[%clk 0:00:14]} 34. Bxa7 {[%clk 0:01:07]}  Qxb4 {[%clk 0:00:09]} 35. exf7 {[%clk 0:01:06]}  Rf8 {[%clk 0:00:09]} 36. Re8 {[%clk 0:00:52]}  h6 {[%clk 0:00:05]} 37. Rxf8+ {[%clk 0:00:51]}  Kh7 {[%clk 0:00:05]} 38. Rfe8 {[%clk 0:00:50]}  Nxe8 {[%clk 0:00:03]} 39. fxe8=Q {[%clk 0:00:49]} 1-0


[Site "https://www.chess.com"]

[Event "Titled Tuesday Blitz November 01 Early 2022"]
[White "Al-Tarboush, Ward"]
[Black "Yuan, Qingyu"]
[WhiteFideId "7601450"]
[BlackFideId "8609772"]
[WhiteElo "2269"]
[BlackElo "2359"]
[Result "0-1"]
[Round "08"]
[TimeControl "180+1"]
[Date "2022.11.01"]
[WhiteClock "0:00:43"]
[BlackClock "0:00:14"]

1. e4 {[%clk 0:02:58]}  c6 {[%clk 0:03:00]} 2. Nc3 {[%clk 0:02:57]}  d5 {[%clk 0:03:01]} 3. Nf3 {[%clk 0:02:57]}  dxe4 {[%clk 0:03:01]} 4. Nxe4 {[%clk 0:02:58]}  Nf6 {[%clk 0:03:01]} 5. Nxf6+ {[%clk 0:02:59]}  exf6 {[%clk 0:03:02]} 6. Bc4 {[%clk 0:02:59]}  Bd6 {[%clk 0:03:02]} 7. Qe2+ {[%clk 0:03:00]}  Be7 {[%clk 0:03:03]} 8. d4 {[%clk 0:03:00]}  O-O {[%clk 0:03:03]} 9. O-O {[%clk 0:02:59]}  Bd6 {[%clk 0:03:04]} 10. Re1 {[%clk 0:02:59]}  a5 {[%clk 0:03:04]} 11. a4 {[%clk 0:02:58]}  Na6 {[%clk 0:03:04]} 12. c3 {[%clk 0:02:58]}  Nc7 {[%clk 0:03:02]} 13. Be3 {[%clk 0:02:54]}  Bg4 {[%clk 0:02:57]} 14. h3 {[%clk 0:02:54]}  Bh5 {[%clk 0:02:57]} 15. Qd1 {[%clk 0:02:50]}  Nd5 {[%clk 0:02:44]} 16. Bxd5 {[%clk 0:02:50]}  cxd5 {[%clk 0:02:44]} 17. g4 {[%clk 0:02:51]}  Bg6 {[%clk 0:02:45]} 18. Nh4 {[%clk 0:02:51]}  Be4 {[%clk 0:02:24]} 19. Nf5 {[%clk 0:02:50]}  Bc7 {[%clk 0:02:17]} 20. Ng3 {[%clk 0:02:48]}  Bxg3 {[%clk 0:02:12]} 21. fxg3 {[%clk 0:02:48]}  Qb6 {[%clk 0:02:12]} 22. Qd2 {[%clk 0:02:47]}  Rfe8 {[%clk 0:02:09]} 23. Bf2 {[%clk 0:02:41]}  Re6 {[%clk 0:02:08]} 24. Re3 {[%clk 0:02:40]}  Rae8 {[%clk 0:02:00]} 25. b4 {[%clk 0:02:40]}  h6 {[%clk 0:01:52]} 26. b5 {[%clk 0:02:40]}  Qc7 {[%clk 0:01:50]} 27. Rae1 {[%clk 0:02:39]}  Qc4 {[%clk 0:01:49]} 28. Ra1 {[%clk 0:02:38]}  f5 {[%clk 0:01:45]} 29. gxf5 {[%clk 0:02:38]}  Bxf5 {[%clk 0:01:45]} 30. Rxe6 {[%clk 0:02:38]}  Rxe6 {[%clk 0:01:45]} 31. g4 {[%clk 0:02:37]}  Re2 {[%clk 0:01:40]} 32. Qf4 {[%clk 0:02:36]}  Be4 {[%clk 0:01:37]} 33. Qg3 {[%clk 0:02:26]}  Rc2 {[%clk 0:01:33]} 34. g5 {[%clk 0:02:02]}  h5 {[%clk 0:01:26]} 35. Re1 {[%clk 0:01:49]}  Rxc3 {[%clk 0:01:24]} 36. Be3 {[%clk 0:01:48]}  Rc2 {[%clk 0:01:18]} 37. Bf2 {[%clk 0:01:47]}  Rc3 {[%clk 0:01:17]} 38. Qh4 {[%clk 0:01:46]}  Qc8 {[%clk 0:01:00]} 39. Re3 {[%clk 0:01:39]}  Rc1+ {[%clk 0:00:59]} 40. Re1 {[%clk 0:01:39]}  Qc3 {[%clk 0:00:48]} 41. Rxc1 {[%clk 0:01:28]}  Qxc1+ {[%clk 0:00:48]} 42. Be1 {[%clk 0:01:28]}  Qe3+ {[%clk 0:00:48]} 43. Bf2 {[%clk 0:01:28]}  Qf3 {[%clk 0:00:48]} 44. Kf1 {[%clk 0:01:27]}  Bd3+ {[%clk 0:00:45]} 45. Kg1 {[%clk 0:01:27]}  Qd1+ {[%clk 0:00:43]} 46. Kh2 {[%clk 0:01:26]}  Be4 {[%clk 0:00:43]} 47. Qf4 {[%clk 0:01:22]}  h4 {[%clk 0:00:41]} 48. Bg1 {[%clk 0:01:16]}  Qc2+ {[%clk 0:00:34]} 49. Qf2 {[%clk 0:01:16]}  Qxa4 {[%clk 0:00:34]} 50. Qxh4 {[%clk 0:01:16]}  Qxb5 {[%clk 0:00:34]} 51. Qf4 {[%clk 0:01:10]}  Qe2+ {[%clk 0:00:33]} 52. Bf2 {[%clk 0:01:10]}  Qf1 {[%clk 0:00:32]} 53. Kg3 {[%clk 0:01:07]}  a4 {[%clk 0:00:29]} 54. g6 {[%clk 0:00:58]}  fxg6 {[%clk 0:00:28]} 55. Qh4 {[%clk 0:00:55]}  Qg2+ {[%clk 0:00:28]} 56. Kf4 {[%clk 0:00:55]}  Qf3+ {[%clk 0:00:26]} 57. Ke5 {[%clk 0:00:55]}  Qf6+ {[%clk 0:00:19]} 58. Qxf6 {[%clk 0:00:56]}  gxf6+ {[%clk 0:00:20]} 59. Kxf6 {[%clk 0:00:57]}  Kh7 {[%clk 0:00:17]} 60. Ke5 {[%clk 0:00:56]}  b5 {[%clk 0:00:16]} 61. Be1 {[%clk 0:00:51]}  a3 {[%clk 0:00:13]} 62. Bb4 {[%clk 0:00:52]}  a2 {[%clk 0:00:12]} 63. Bc3 {[%clk 0:00:52]}  b4 {[%clk 0:00:12]} 64. Bb2 {[%clk 0:00:53]}  Kh6 {[%clk 0:00:12]} 65. Kf4 {[%clk 0:00:52]}  Kh5 {[%clk 0:00:12]} 66. Kg3 {[%clk 0:00:52]}  Kg5 {[%clk 0:00:13]} 67. Bc1+ {[%clk 0:00:52]}  Kf5 {[%clk 0:00:13]} 68. Bb2 {[%clk 0:00:53]}  Bd3 {[%clk 0:00:12]} 69. Kf3 {[%clk 0:00:53]}  Kg5 {[%clk 0:00:11]} 70. Kg3 {[%clk 0:00:53]}  Be2 {[%clk 0:00:11]} 71. Kf2 {[%clk 0:00:51]}  Bd1 {[%clk 0:00:11]} 72. Kg3 {[%clk 0:00:50]}  Kf5 {[%clk 0:00:11]} 73. Kh4 {[%clk 0:00:51]}  Ke4 {[%clk 0:00:11]} 74. Kg5 {[%clk 0:00:50]}  Bh5 {[%clk 0:00:11]} 75. Kf6 {[%clk 0:00:50]}  Kd3 {[%clk 0:00:11]} 76. Ke5 {[%clk 0:00:50]}  Bf3 {[%clk 0:00:12]} 77. Kf4 {[%clk 0:00:49]}  Be4 {[%clk 0:00:11]} 78. h4 {[%clk 0:00:42]}  Kc2 {[%clk 0:00:12]} 79. Ba1 {[%clk 0:00:41]}  Kb1 {[%clk 0:00:11]} 80. Ke3 {[%clk 0:00:40]}  Kxa1 {[%clk 0:00:12]} 81. Kd2 {[%clk 0:00:41]}  Kb1 {[%clk 0:00:12]} 82. Ke3 {[%clk 0:00:42]}  a1=Q {[%clk 0:00:13]} 83. Kf4 {[%clk 0:00:42]}  Qxd4 {[%clk 0:00:14]} 84. h5 {[%clk 0:00:42]}  gxh5 {[%clk 0:00:14]} 85. Kg5 {[%clk 0:00:43]}  b3 {[%clk 0:00:14]} 0-1


[Site "https://www.chess.com"]

[Event "Titled Tuesday Blitz November 01 Early 2022"]
[White "Ardila, Oscar Humberto"]
[Black "Kosakowski, Jakub"]
[WhiteFideId "4404742"]
[BlackFideId "1185080"]
[WhiteElo "1898"]
[BlackElo "2463"]
[Result "0-1"]
[Round "08"]
[TimeControl "180+1"]
[Date "2022.11.02"]
[WhiteClock "0:01:05"]
[BlackClock "0:00:54"]

1. d4 {[%clk 0:03:00]}  d5 {[%clk 0:02:55]} 2. c4 {[%clk 0:03:00]}  e5 {[%clk 0:02:55]} 3. Nf3 {[%clk 0:02:58]}  exd4 {[%clk 0:02:51]} 4. Nxd4 {[%clk 0:02:58]}  c5 {[%clk 0:02:48]} 5. Nf3 {[%clk 0:02:54]}  Nf6 {[%clk 0:02:38]} 6. Nc3 {[%clk 0:02:49]}  d4 {[%clk 0:02:37]} 7. Nb1 {[%clk 0:02:45]}  Nc6 {[%clk 0:02:31]} 8. g3 {[%clk 0:02:43]}  h6 {[%clk 0:02:27]} 9. Bg2 {[%clk 0:02:43]}  Bd6 {[%clk 0:02:26]} 10. O-O {[%clk 0:02:43]}  O-O {[%clk 0:02:26]} 11. Nbd2 {[%clk 0:02:42]}  Re8 {[%clk 0:02:23]} 12. Re1 {[%clk 0:02:41]}  Bf5 {[%clk 0:02:16]} 13. a3 {[%clk 0:02:40]}  Qd7 {[%clk 0:02:14]} 14. Nh4 {[%clk 0:02:40]}  Bh7 {[%clk 0:02:03]} 15. b3 {[%clk 0:02:39]}  Re7 {[%clk 0:02:02]} 16. Bb2 {[%clk 0:02:36]}  Rae8 {[%clk 0:02:02]} 17. Bf3 {[%clk 0:02:23]}  g5 {[%clk 0:01:54]} 18. Ng2 {[%clk 0:02:11]}  Ne5 {[%clk 0:01:53]} 19. b4 {[%clk 0:01:29]}  Qh3 {[%clk 0:01:35]} 20. Bxb7 {[%clk 0:01:13]}  Rxb7 {[%clk 0:01:09]} 21. Nf1 {[%clk 0:01:10]}  Nxc4 {[%clk 0:01:05]} 22. Qb3 {[%clk 0:01:09]}  Nxb2 {[%clk 0:01:04]} 23. Qxb2 {[%clk 0:01:09]}  Rbe7 {[%clk 0:01:03]} 24. b5 {[%clk 0:01:09]}  Nd5 {[%clk 0:00:56]} 25. a4 {[%clk 0:01:09]}  Nc3 {[%clk 0:00:56]} 26. a5 {[%clk 0:01:06]}  Rxe2 {[%clk 0:00:55]} 27. Qb3 {[%clk 0:01:05]}  Rxe1 {[%clk 0:00:53]} 28. Rxe1 {[%clk 0:01:05]}  Rxe1 {[%clk 0:00:53]} 29. Nxe1 {[%clk 0:01:05]}  Ne2+ {[%clk 0:00:53]} 30. Kh1 {[%clk 0:01:05]}  Qxf1# {[%clk 0:00:54]} 0-1


[Site "https://www.chess.com"]

[Event "Titled Tuesday Blitz November 01 Early 2022"]
[White "Baches Garcia, Guillermo"]
[Black "Makhmudov, Shukhrat"]
[WhiteFideId "2209764"]
[BlackFideId "14200775"]
[WhiteElo "2425"]
[BlackElo "2135"]
[Result "1-0"]
[Round "08"]
[TimeControl "180+1"]
[Date "2022.11.02"]
[WhiteClock "0:00:05"]
[BlackClock "0:00:05"]

1. e4 {[%clk 0:03:00]}  e5 {[%clk 0:02:59]} 2. Nf3 {[%clk 0:03:01]}  Nc6 {[%clk 0:02:59]} 3. Nc3 {[%clk 0:03:01]}  Nf6 {[%clk 0:02:59]} 4. d4 {[%clk 0:03:02]}  exd4 {[%clk 0:02:59]} 5. Nxd4 {[%clk 0:03:02]}  Bb4 {[%clk 0:02:59]} 6. Nxc6 {[%clk 0:03:03]}  bxc6 {[%clk 0:03:00]} 7. Bd3 {[%clk 0:03:03]}  d5 {[%clk 0:03:00]} 8. Bd2 {[%clk 0:03:03]}  Bxc3 {[%clk 0:02:58]} 9. Bxc3 {[%clk 0:03:03]}  dxe4 {[%clk 0:02:58]} 10. Bxf6 {[%clk 0:03:01]}  Qxf6 {[%clk 0:02:57]} 11. Qe2 {[%clk 0:03:01]}  O-O {[%clk 0:02:55]} 12. Qxe4 {[%clk 0:02:55]}  g6 {[%clk 0:02:50]} 13. O-O {[%clk 0:02:55]}  Bf5 {[%clk 0:02:46]} 14. Qf3 {[%clk 0:02:55]}  Qxb2 {[%clk 0:02:37]} 15. Bxf5 {[%clk 0:02:47]}  gxf5 {[%clk 0:02:37]} 16. Qxf5 {[%clk 0:02:28]}  Rad8 {[%clk 0:02:33]} 17. Rae1 {[%clk 0:02:22]}  Rd6 {[%clk 0:02:16]} 18. Re3 {[%clk 0:02:09]}  Qxa2 {[%clk 0:02:09]} 19. Rh3 {[%clk 0:01:50]}  Rg6 {[%clk 0:02:08]} 20. Qh5 {[%clk 0:01:41]}  h6 {[%clk 0:01:50]} 21. Rc3 {[%clk 0:01:32]}  Qd5 {[%clk 0:01:45]} 22. Qxd5 {[%clk 0:01:31]}  cxd5 {[%clk 0:01:45]} 23. Rxc7 {[%clk 0:01:32]}  Ra8 {[%clk 0:01:43]} 24. Ra1 {[%clk 0:01:26]}  a5 {[%clk 0:01:43]} 25. Ra4 {[%clk 0:01:20]}  Rd6 {[%clk 0:01:40]} 26. g3 {[%clk 0:01:15]}  d4 {[%clk 0:01:39]} 27. Rc5 {[%clk 0:01:06]}  d3 {[%clk 0:01:13]} 28. cxd3 {[%clk 0:01:01]}  Rxd3 {[%clk 0:01:13]} 29. Rcxa5 {[%clk 0:01:00]}  Rxa5 {[%clk 0:01:13]} 30. Rxa5 {[%clk 0:01:01]}  Kg7 {[%clk 0:01:12]} 31. Kg2 {[%clk 0:01:01]}  Rb3 {[%clk 0:01:08]} 32. h4 {[%clk 0:01:00]}  Rc3 {[%clk 0:01:00]} 33. Ra6 {[%clk 0:01:00]}  h5 {[%clk 0:00:55]} 34. Ra5 {[%clk 0:00:56]}  Kg6 {[%clk 0:00:54]} 35. Rg5+ {[%clk 0:00:56]}  Kh6 {[%clk 0:00:54]} 36. Rf5 {[%clk 0:00:53]}  Kg6 {[%clk 0:00:53]} 37. Rf3 {[%clk 0:00:53]}  Rc4 {[%clk 0:00:53]} 38. Re3 {[%clk 0:00:51]}  Rc5 {[%clk 0:00:51]} 39. Rf3 {[%clk 0:00:50]}  Rc4 {[%clk 0:00:50]} 40. Rb3 {[%clk 0:00:49]}  Ra4 {[%clk 0:00:50]} 41. Kf3 {[%clk 0:00:48]}  Rc4 {[%clk 0:00:49]} 42. Rb6+ {[%clk 0:00:48]}  f6 {[%clk 0:00:48]} 43. Rb5 {[%clk 0:00:47]}  Ra4 {[%clk 0:00:48]} 44. Kg2 {[%clk 0:00:47]}  Ra3 {[%clk 0:00:47]} 45. Rb4 {[%clk 0:00:46]}  Rc3 {[%clk 0:00:46]} 46. Rf4 {[%clk 0:00:46]}  Ra3 {[%clk 0:00:44]} 47. Rf3 {[%clk 0:00:46]}  Ra4 {[%clk 0:00:44]} 48. Re3 {[%clk 0:00:46]}  Ra5 {[%clk 0:00:43]} 49. Kf3 {[%clk 0:00:46]}  Rf5+ {[%clk 0:00:42]} 50. Kg2 {[%clk 0:00:46]}  Ra5 {[%clk 0:00:42]} 51. Re2 {[%clk 0:00:46]}  Ra3 {[%clk 0:00:42]} 52. Rd2 {[%clk 0:00:46]}  Rb3 {[%clk 0:00:41]} 53. Rd4 {[%clk 0:00:46]}  Ra3 {[%clk 0:00:41]} 54. Rf4 {[%clk 0:00:46]}  Rb3 {[%clk 0:00:40]} 55. Kh2 {[%clk 0:00:43]}  Ra3 {[%clk 0:00:40]} 56. Kg1 {[%clk 0:00:42]}  Rb3 {[%clk 0:00:39]} 57. Ra4 {[%clk 0:00:42]}  Rc3 {[%clk 0:00:39]} 58. Ra8 {[%clk 0:00:42]}  Rc5 {[%clk 0:00:31]} 59. Kg2 {[%clk 0:00:41]}  Rc3 {[%clk 0:00:29]} 60. Rg8+ {[%clk 0:00:41]}  Kf7 {[%clk 0:00:29]} 61. Rh8 {[%clk 0:00:39]}  Kg6 {[%clk 0:00:29]} 62. Rb8 {[%clk 0:00:38]}  Ra3 {[%clk 0:00:28]} 63. Rb5 {[%clk 0:00:37]}  Rc3 {[%clk 0:00:28]} 64. Rd5 {[%clk 0:00:37]}  Ra3 {[%clk 0:00:28]} 65. Rc5 {[%clk 0:00:36]}  Rb3 {[%clk 0:00:28]} 66. Rc4 {[%clk 0:00:36]}  Ra3 {[%clk 0:00:28]} 67. g4 {[%clk 0:00:35]}  hxg4 {[%clk 0:00:27]} 68. Rxg4+ {[%clk 0:00:35]}  Kf5 {[%clk 0:00:22]} 69. f3 {[%clk 0:00:32]}  Ra1 {[%clk 0:00:20]} 70. h5 {[%clk 0:00:28]}  Ra8 {[%clk 0:00:20]} 71. Kg3 {[%clk 0:00:19]}  Ra1 {[%clk 0:00:17]} 72. h6 {[%clk 0:00:18]}  Ra8 {[%clk 0:00:16]} 73. h7 {[%clk 0:00:14]}  Rh8 {[%clk 0:00:15]} 74. Rg7 {[%clk 0:00:14]}  Ke6 {[%clk 0:00:11]} 75. Kg4 {[%clk 0:00:14]}  Ke5 {[%clk 0:00:10]} 76. f4+ {[%clk 0:00:14]}  Ke6 {[%clk 0:00:10]} 77. f5+ {[%clk 0:00:14]}  Ke5 {[%clk 0:00:10]} 78. Rf7 {[%clk 0:00:14]}  Ra8 {[%clk 0:00:07]} 79. Kh5 {[%clk 0:00:12]}  Kxf5 {[%clk 0:00:06]} 80. Rg7 {[%clk 0:00:10]}  Ra1 {[%clk 0:00:04]} 81. Rg4 {[%clk 0:00:08]}  Ra8 {[%clk 0:00:01]} 82. Rg8 {[%clk 0:00:06]}  Ra1 {[%clk 0:00:01]} 83. Rg4 {[%clk 0:00:06]}  Ra8 {[%clk 0:00:01]} 84. Rg3 {[%clk 0:00:03]}  Rh8 {[%clk 0:00:01]} 85. Kh6 {[%clk 0:00:03]}  Ra8 {[%clk 0:00:01]} 86. Rg8 {[%clk 0:00:01]}  Ra1 {[%clk 0:00:01]} 87. Kg7 {[%clk 0:00:01]}  Rg1+ {[%clk 0:00:01]} 88. Kf7 {[%clk 0:00:01]}  Rh1 {[%clk 0:00:01]} 89. h8=Q {[%clk 0:00:01]}  Rxh8 {[%clk 0:00:02]} 90. Rxh8 {[%clk 0:00:02]}  Kg5 {[%clk 0:00:02]} 91. Rh1 {[%clk 0:00:02]}  f5 {[%clk 0:00:02]} 92. Rf1 {[%clk 0:00:03]}  f4 {[%clk 0:00:03]} 93. Ke6 {[%clk 0:00:03]}  Kg4 {[%clk 0:00:03]} 94. Ke5 {[%clk 0:00:04]}  f3 {[%clk 0:00:04]} 95. Ke4 {[%clk 0:00:04]}  Kg3 {[%clk 0:00:05]} 96. Rxf3+ {[%clk 0:00:04]}  Kg2 {[%clk 0:00:05]} 97. Rd3 {[%clk 0:00:05]} 1-0


[Site "https://www.chess.com"]

[Event "Titled Tuesday Blitz November 01 Early 2022"]
[White "Bagwe Gaurang"]
[Black "Szente Varga, Fruzsina"]
[WhiteFideId "45039895"]
[BlackFideId "712264"]
[WhiteElo "1931"]
[BlackElo "1994"]
[Result "1-0"]
[Round "08"]
[TimeControl "180+1"]
[Date "2022.11.02"]
[WhiteClock "0:00:19"]
[BlackClock "0:00:19"]

1. e4 {[%clk 0:03:00]}  e5 {[%clk 0:02:59]} 2. Nf3 {[%clk 0:03:00]}  Nc6 {[%clk 0:02:59]} 3. Bc4 {[%clk 0:03:00]}  Be7 {[%clk 0:02:58]} 4. c3 {[%clk 0:02:57]}  Nf6 {[%clk 0:02:54]} 5. d3 {[%clk 0:02:55]}  O-O {[%clk 0:02:54]} 6. O-O {[%clk 0:02:54]}  d6 {[%clk 0:02:54]} 7. a4 {[%clk 0:02:53]}  Bg4 {[%clk 0:02:53]} 8. Nbd2 {[%clk 0:02:51]}  Qd7 {[%clk 0:02:43]} 9. Re1 {[%clk 0:02:49]}  Be6 {[%clk 0:02:41]} 10. a5 {[%clk 0:02:43]}  a6 {[%clk 0:02:26]} 11. d4 {[%clk 0:02:43]}  exd4 {[%clk 0:02:25]} 12. cxd4 {[%clk 0:02:42]}  d5 {[%clk 0:02:24]} 13. Bd3 {[%clk 0:02:16]}  dxe4 {[%clk 0:02:23]} 14. Nxe4 {[%clk 0:02:15]}  Nxd4 {[%clk 0:02:10]} 15. Neg5 {[%clk 0:02:04]}  Bg4 {[%clk 0:02:05]} 16. Ra4 {[%clk 0:01:25]}  Nxf3+ {[%clk 0:02:02]} 17. gxf3 {[%clk 0:01:18]}  Bf5 {[%clk 0:01:59]} 18. Bxf5 {[%clk 0:01:17]}  Qxf5 {[%clk 0:02:00]} 19. Rxe7 {[%clk 0:01:16]}  Rad8 {[%clk 0:01:34]} 20. Qf1 {[%clk 0:01:07]}  h6 {[%clk 0:01:33]} 21. Ne4 {[%clk 0:01:03]}  Nd5 {[%clk 0:01:28]} 22. Ng3 {[%clk 0:01:00]}  Qc2 {[%clk 0:01:24]} 23. Rc4 {[%clk 0:00:50]}  Qb3 {[%clk 0:01:18]} 24. Re1 {[%clk 0:00:48]}  Qxf3 {[%clk 0:01:16]} 25. Rce4 {[%clk 0:00:47]}  Nf6 {[%clk 0:01:11]} 26. R4e3 {[%clk 0:00:46]}  Qd5 {[%clk 0:01:10]} 27. Re5 {[%clk 0:00:45]}  Qb3 {[%clk 0:01:08]} 28. Qg2 {[%clk 0:00:44]}  c6 {[%clk 0:01:07]} 29. Nf5 {[%clk 0:00:44]}  g6 {[%clk 0:00:58]} 30. Bxh6 {[%clk 0:00:43]}  Rfe8 {[%clk 0:00:54]} 31. Ne7+ {[%clk 0:00:43]}  Kh7 {[%clk 0:00:48]} 32. Bg5 {[%clk 0:00:43]}  Nh5 {[%clk 0:00:48]} 33. Bh4 {[%clk 0:00:30]}  Rd1 {[%clk 0:00:46]} 34. Rxh5+ {[%clk 0:00:21]}  Kg7 {[%clk 0:00:22]} 35. Bf6+ {[%clk 0:00:20]}  Kxf6 {[%clk 0:00:21]} 36. Qg5+ {[%clk 0:00:20]}  Kg7 {[%clk 0:00:20]} 37. Qh6+ {[%clk 0:00:19]}  Kf6 {[%clk 0:00:19]} 38. Rf5# {[%clk 0:00:19]} 1-0


[Site "https://www.chess.com"]

[Event "Titled Tuesday Blitz November 01 Early 2022"]
[White "Brown, Andrew"]
[Black "Ronka, Erik"]
[WhiteFideId "3206513"]
[BlackFideId "505080"]
[WhiteElo "2245"]
[BlackElo "2264"]
[Result "0-1"]
[Round "08"]
[TimeControl "180+1"]
[Date "2022.11.02"]
[WhiteClock "0:00:03"]
[BlackClock "0:00:47"]

1. d4 {[%clk 0:02:56]}  d5 {[%clk 0:02:59]} 2. c4 {[%clk 0:02:56]}  Bf5 {[%clk 0:02:59]} 3. cxd5 {[%clk 0:02:55]}  Bxb1 {[%clk 0:02:58]} 4. Rxb1 {[%clk 0:02:55]}  Qxd5 {[%clk 0:02:59]} 5. e4 {[%clk 0:02:53]}  Qxe4+ {[%clk 0:02:55]} 6. Be3 {[%clk 0:02:52]}  e5 {[%clk 0:02:51]} 7. Nf3 {[%clk 0:02:33]}  Bb4+ {[%clk 0:02:49]} 8. Ke2 {[%clk 0:02:16]}  Nc6 {[%clk 0:02:46]} 9. d5 {[%clk 0:01:37]}  O-O-O {[%clk 0:01:58]} 10. Ng5 {[%clk 0:01:32]}  Qf5 {[%clk 0:01:30]} 11. Rc1 {[%clk 0:00:35]}  Nd4+ {[%clk 0:01:21]} 12. Bxd4 {[%clk 0:00:33]}  exd4 {[%clk 0:01:22]} 13. Qxd4 {[%clk 0:00:26]}  Qxg5 {[%clk 0:01:18]} 14. f4 {[%clk 0:00:11]}  Qe7+ {[%clk 0:01:07]} 15. Kf3 {[%clk 0:00:10]}  Kb8 {[%clk 0:00:53]} 16. a3 {[%clk 0:00:07]}  Ba5 {[%clk 0:00:50]} 17. Bd3 {[%clk 0:00:04]}  Nf6 {[%clk 0:00:48]} 18. b4 {[%clk 0:00:03]}  Bb6 {[%clk 0:00:47]} 0-1


[Site "https://www.chess.com"]

[Event "Titled Tuesday Blitz November 01 Early 2022"]
[White "Budrewicz, Krzysztof"]
[Black "Devaev, Alexander"]
[WhiteFideId "1127950"]
[BlackFideId "4169395"]
[WhiteElo "2171"]
[BlackElo "2225"]
[Result "0-1"]
[Round "08"]
[TimeControl "180+1"]
[Date "2022.11.02"]
[WhiteClock "0:00:06"]
[BlackClock "0:00:05"]

1. d4 {[%clk 0:03:00]}  Nf6 {[%clk 0:02:59]} 2. c4 {[%clk 0:03:00]}  e6 {[%clk 0:02:59]} 3. Nf3 {[%clk 0:03:00]}  Bb4+ {[%clk 0:02:59]} 4. Bd2 {[%clk 0:03:00]}  Qe7 {[%clk 0:02:59]} 5. g3 {[%clk 0:03:00]}  b6 {[%clk 0:03:00]} 6. Bg2 {[%clk 0:03:00]}  Bb7 {[%clk 0:03:00]} 7. O-O {[%clk 0:03:00]}  Bxd2 {[%clk 0:03:01]} 8. Qxd2 {[%clk 0:03:01]}  O-O {[%clk 0:03:01]} 9. Nc3 {[%clk 0:03:00]}  Ne4 {[%clk 0:03:01]} 10. Nxe4 {[%clk 0:03:01]}  Bxe4 {[%clk 0:03:02]} 11. Qe3 {[%clk 0:03:02]}  f5 {[%clk 0:02:59]} 12. Rfd1 {[%clk 0:03:00]}  d6 {[%clk 0:02:53]} 13. Ng5 {[%clk 0:02:55]}  Bxg2 {[%clk 0:02:53]} 14. Kxg2 {[%clk 0:02:55]}  Re8 {[%clk 0:02:47]} 15. f4 {[%clk 0:02:54]}  Nd7 {[%clk 0:02:43]} 16. Rd2 {[%clk 0:02:46]}  h6 {[%clk 0:02:42]} 17. Nf3 {[%clk 0:02:46]}  Nf6 {[%clk 0:02:42]} 18. Rad1 {[%clk 0:02:40]}  Ne4 {[%clk 0:02:41]} 19. Rc2 {[%clk 0:02:41]}  Rad8 {[%clk 0:02:02]} 20. Nd2 {[%clk 0:02:39]}  Nf6 {[%clk 0:02:03]} 21. Qf2 {[%clk 0:02:38]}  c5 {[%clk 0:01:56]} 22. e3 {[%clk 0:02:32]}  Rc8 {[%clk 0:01:36]} 23. Qf3 {[%clk 0:02:30]}  cxd4 {[%clk 0:01:07]} 24. exd4 {[%clk 0:02:30]}  d5 {[%clk 0:01:08]} 25. Rdc1 {[%clk 0:02:19]}  Ne4 {[%clk 0:01:08]} 26. Nxe4 {[%clk 0:02:19]}  dxe4 {[%clk 0:01:02]} 27. Qe3 {[%clk 0:02:19]}  Red8 {[%clk 0:00:59]} 28. c5 {[%clk 0:02:19]}  bxc5 {[%clk 0:00:56]} 29. dxc5 {[%clk 0:02:07]}  Rd3 {[%clk 0:00:55]} 30. Qe2 {[%clk 0:02:06]}  Rc6 {[%clk 0:00:47]} 31. b4 {[%clk 0:02:04]}  a6 {[%clk 0:00:48]} 32. a4 {[%clk 0:02:03]}  Qb7 {[%clk 0:00:48]} 33. Rb2 {[%clk 0:01:59]}  Rd5 {[%clk 0:00:42]} 34. Qh5 {[%clk 0:01:45]}  Kh7 {[%clk 0:00:39]} 35. a5 {[%clk 0:01:26]}  Rdxc5 {[%clk 0:00:31]} 36. Rxc5 {[%clk 0:01:21]}  Rxc5 {[%clk 0:00:32]} 37. Qe2 {[%clk 0:01:22]}  Rb5 {[%clk 0:00:23]} 38. Kh3 {[%clk 0:00:53]}  Qd5 {[%clk 0:00:18]} 39. Rd2 {[%clk 0:00:49]}  Qc6 {[%clk 0:00:14]} 40. Rd4 {[%clk 0:00:45]}  Rd5 {[%clk 0:00:07]} 41. Rc4 {[%clk 0:00:43]}  Qb5 {[%clk 0:00:07]} 42. Qc2 {[%clk 0:00:43]}  e3 {[%clk 0:00:06]} 43. g4 {[%clk 0:00:27]}  Rd2 {[%clk 0:00:06]} 44. Qc3 {[%clk 0:00:28]}  Qd5 {[%clk 0:00:04]} 45. Qxe3 {[%clk 0:00:05]}  Qg2+ {[%clk 0:00:05]} 46. Kh4 {[%clk 0:00:06]}  Qxg4# {[%clk 0:00:05]} 0-1


[Site "https://www.chess.com"]